fUSD/lending_fUSD_20241215
["ID","MTS","AMOUNT","RATE_DAILY","PERIOD"]
[345511333,1734305469726,-1076.1,0.00022499,3]
[345511334,1734305469736,-1076.1,0.00022499,3]
[345511335,1734305469746,-1076.1,0.00022499,3]
[345511336,1734305469756,-1076.1,0.00022499,3]
[345511337,1734305469765,-1076.1,0.00022499,3]
[345511338,1734305469775,-1076.1,0.00022499,3]
[345511339,1734305469784,-1076.1,0.00022499,3]
[345511340,1734305469793,-1076.1,0.00022499,3]
[345511341,1734305469804,-1076.1,0.00022499,3]
[345511342,1734305469813,-1076.27,0.00022499,3]
[345511343,1734305469823,-500.0,0.00022499,3]
[345511344,1734305469832,-500.0,0.00022499,3]
[345511345,1734305469841,-500.0,0.00022499,3]
[345511346,1734305469851,-500.0,0.00022499,3]
[345511347,1734305469860,-500.0,0.00022499,3]
[345511348,1734305469870,-500.0,0.00022499,3]
[345511349,1734305469879,-165.44,0.00022499,3]
[345511350,1734305469888,-877.34,0.00022499,3]
[345511351,1734305469898,-877.34,0.00022499,3]
[345511352,1734305469907,-877.34,0.00022499,3]
[345511353,1734305469917,-877.34,0.00022499,3]
[345511354,1734305469926,-500.0,0.00022499,3]
[345511355,1734305469944,-877.34,0.00022499,3]
[345511356,1734305469953,-500.0,0.00022499,3]
[345511357,1734305469963,-877.34,0.00022499,3]
[345511358,1734305469973,-500.0,0.00022499,3]
[345511359,1734305469983,-877.34,0.00022499,3]
[345511360,1734305469993,-500.0,0.00022499,3]
[345511361,1734305470002,-877.34,0.00022499,3]
[345511362,1734305470011,-500.0,0.00022499,3]
[345511363,1734305470021,-877.34,0.00022499,3]
[345511364,1734305470030,-500.0,0.00022499,3]
[345511365,1734305470040,-877.34,0.00022499,3]
[345511366,1734305470049,-500.0,0.00022499,3]
[345511367,1734305470059,-877.34,0.00022499,3]
[345511368,1734305470068,-877.34,0.00022499,3]
[345511369,1734305470077,-500.0,0.00022499,3]
[345511370,1734305470088,-877.34,0.00022499,3]
[345511371,1734305470098,-500.0,0.00022499,3]
[345511372,1734305470110,-877.34,0.00022499,3]
[345511373,1734305470120,-500.0,0.00022499,3]
[345511374,1734305470129,-877.43,0.00022499,3]
[345511375,1734305470138,-408.27,0.00022499,3]
[345511376,1734305470150,-151.0,0.00022499,7]
[345511377,1734305470159,-889.28,0.00022499,3]
[345511378,1734305470169,-889.28,0.00022499,3]
[345511379,1734305470184,-889.28,0.00022499,3]
[345511380,1734305470194,-889.28,0.00022499,3]
[345511381,1734305470203,-889.28,0.00022499,3]
[345511382,1734305470213,-889.28,0.00022499,3]
[345511383,1734305470222,-889.28,0.00022499,3]
[345511384,1734305470232,-889.28,0.00022499,3]
[345511385,1734305470241,-889.28,0.00022499,3]
[345511386,1734305470250,-889.28,0.00022499,3]
[345511387,1734305470260,-889.28,0.00022499,3]
[345511388,1734305470269,-889.28,0.00022499,3]
[345511389,1734305470279,-889.28,0.00022499,3]
[345511390,1734305470289,-889.28,0.00022499,3]
[345511391,1734305470298,-889.28,0.00022499,3]
[345511392,1734305470307,-889.28,0.00022499,3]
[345511393,1734305470316,-889.49,0.00022499,3]
[345511394,1734305470325,-500.0,0.00022499,3]
[345511395,1734305470334,-307.17419634,0.00022499,3]
[345511396,1734305470344,-500.0,0.00022499,3]
[345511397,1734305470353,-500.0,0.00022499,3]
[345511398,1734305470362,-500.0,0.00022499,3]
[345511399,1734305470371,-500.0,0.00022499,3]
[345511400,1734305470381,-520.78,0.00022499,3]
[345511401,1734305470390,-668.95,0.00022499,3]
[345511402,1734305470399,-668.95,0.00022499,3]
[345511403,1734305470408,-668.95,0.00022499,3]
[345511404,1734305470417,-668.95,0.00022499,3]
[345511405,1734305470426,-668.95,0.00022499,3]
[345511406,1734305470442,-668.95,0.00022499,3]
[345511407,1734305470451,-668.95,0.00022499,3]
[345511408,1734305470459,-668.95,0.00022499,3]
[345511409,1734305470469,-668.95,0.00022499,3]
[345511410,1734305470478,-668.95,0.00022499,3]
[345511411,1734305470487,-765.14,0.00022499,3]
[345511412,1734305470496,-668.95,0.00022499,3]
[345511413,1734305470505,-500.0,0.00022499,3]
[345511414,1734305470514,-765.14,0.00022499,3]
[345511415,1734305470524,-668.95,0.00022499,3]
[345511416,1734305470533,-500.0,0.00022499,3]
[345511417,1734305470542,-765.14,0.00022499,3]
[345511418,1734305470552,-668.95,0.00022499,3]
[345511419,1734305470561,-500.0,0.00022499,3]
[345511420,1734305470571,-151.0,0.00022499,7]
[345511421,1734305470580,-765.14,0.00022499,3]
[345511422,1734305470589,-668.95,0.00022499,3]
[345511423,1734305470599,-500.0,0.00022499,3]
[345511424,1734305470608,-765.14,0.00022499,3]
[345511425,1734305470618,-668.95,0.00022499,3]
[345511426,1734305470627,-500.0,0.00022499,3]
[345511427,1734305470636,-765.14,0.00022499,3]
[345511428,1734305470646,-668.95,0.00022499,3]
[345511429,1734305470655,-500.0,0.00022499,3]
[345511430,1734305470664,-765.14,0.00022499,3]
[345511431,1734305470674,-668.95,0.00022499,3]
[345511432,1734305470688,-500.0,0.00022499,3]
[345511433,1734305470697,-765.14,0.00022499,3]
[345511434,1734305470706,-668.95,0.00022499,3]
[345511435,1734305470715,-500.13,0.00022499,3]
[345511436,1734305470725,-500.0,0.00022499,3]
[345511437,1734305470734,-765.14,0.00022499,3]
[345511438,1734305470743,-500.0,0.00022499,3]
[345511439,1734305470753,-500.13,0.00022499,3]
[345511440,1734305470763,-500.0,0.00022499,3]
[345511441,1734305470773,-668.95,0.00022499,3]
[345511442,1734305470782,-765.14,0.00022499,3]
[345511443,1734305470792,-668.95,0.00022499,3]
[345511444,1734305470801,-500.13,0.00022499,3]
[345511445,1734305470810,-765.14,0.00022499,3]
[345511446,1734305470820,-669.1473498,0.00022499,3]
[345511447,1734305470829,-500.0,0.00022499,3]
[345511448,1734305470839,-765.14,0.00022499,3]
[345511449,1734305470849,-500.13,0.00022499,3]
[345511450,1734305470858,-500.0,0.00022499,3]
[345511451,1734305470867,-765.14,0.00022499,3]
[345511452,1734305470876,-500.13,0.00022499,3]
[345511453,1734305470886,-500.0,0.00022499,3]
[345511454,1734305470895,-500.13,0.00022499,3]
[345511455,1734305470904,-765.14,0.00022499,3]
[345511456,1734305470914,-344.65,0.00022499,3]
[345511457,1734305470923,-765.14,0.00022499,3]
[345511458,1734305470936,-500.13,0.00022499,3]
[345511459,1734305470946,-500.0,0.00022499,3]
[345511460,1734305470955,-500.13,0.00022499,3]
[345511461,1734305470964,-438.97,0.00022499,3]
[345511462,1734305470973,-500.0,0.00022499,3]
[345511463,1734305470983,-500.17,0.00022499,3]
[345511464,1734305470992,-765.14,0.00022499,3]
[345511465,1734305471001,-500.0,0.00022499,3]
[345511466,1734305471010,-765.14,0.00022499,3]
[345511467,1734305471020,-500.0,0.00022499,3]
[345511468,1734305471029,-765.14,0.00022499,3]
[345511469,1734305471038,-500.0,0.00022499,3]
[345511470,1734305471048,-765.3,0.00022499,3]
[345511471,1734305471057,-414.8,0.00022499,3]
[345511472,1734305471066,-500.0,0.00022499,3]
[345511473,1734305471076,-348.81,0.00022499,3]
[345511474,1734305471086,-500.0,0.00022499,3]
[345511475,1734305471096,-500.0,0.00022499,3]
[345511476,1734305471106,-500.0,0.00022499,3]
[345511477,1734305471116,-500.0,0.00022499,3]
[345511478,1734305471211,-500.0,0.00022499,3]
[345511479,1734305471220,-500.0,0.00022499,3]
[345511480,1734305471230,-500.0,0.00022499,3]
[345511481,1734305471239,-500.0,0.00022499,3]
[345511482,1734305471248,-500.0,0.00022499,3]
[345511483,1734305471257,-500.0,0.00022499,3]
[345511484,1734305471266,-500.0,0.00022499,3]
[345511485,1734305471275,-500.0,0.00022499,3]
[345511486,1734305471284,-500.0,0.00022499,3]
[345511487,1734305471293,-500.0,0.00022499,3]
[345511488,1734305471302,-565.23,0.00022499,3]
[345511489,1734305471311,-500.0,0.00022499,3]
[345511490,1734305471320,-500.0,0.00022499,3]
[345511491,1734305471329,-565.23,0.00022499,3]
[345511492,1734305471339,-500.0,0.00022499,3]
[345511493,1734305471348,-565.23,0.00022499,3]
[345511494,1734305471358,-500.0,0.00022499,3]
[345511495,1734305471367,-425.6182522,0.00022499,3]
[345511496,1734305471376,-565.23,0.00022499,3]
[345511497,1734305471385,-500.0,0.00022499,3]
[345511498,1734305471395,-565.23,0.00022499,3]
[345511499,1734305471404,-500.0,0.00022499,3]
[345511500,1734305471413,-565.23,0.00022499,3]
[345511501,1734305471423,-287.22984969,0.00022499,3]
[345511502,1734305471435,-565.23,0.00022499,3]
[345511503,1734305471449,-565.23,0.00022499,3]
[345511504,1734305471458,-565.34,0.00022499,3]
[345511505,1734305471467,-15000.0,0.00022499,20]
[345511506,1734305471476,-341645.3486561,0.000225,4]
[345511507,1734305471485,-6415.20065679,0.000225,2]
[345511508,1734305471494,-2812.19806058,0.000225,2]
[345511509,1734305471504,-3999123.86937765,0.000225,2]
[345511510,1734305471642,-172742.34706106,0.000225,2]
[345511511,1734305471654,-105396.88581071,0.000225,2]
[345511512,1734305471699,-1543.97563251,0.000225,2]
[345511513,1734305471710,-14505.17818119,0.000225,2]
[345511514,1734305471722,-7419.9988863,0.000225,2]
[345511515,1734305471732,-312.8193962,0.000225,2]
[345511516,1734305471743,-690126.21860408,0.000225,2]
[345511517,1734305471754,-8436.92890782,0.000225,2]
[345511518,1734305471766,-1804.07469715,0.000225,2]
[345511519,1734305471776,-2071.6431708,0.000225,2]
[345511520,1734305471788,-2166.84702072,0.000225,2]
[345511521,1734305471803,-28427.360531,0.000225,2]
[345511522,1734305471814,-92074.108647,0.000225,2]
[345511523,1734305471865,-500.0,0.00022464,3]
[345511524,1734305471875,-500.0,0.00022497,3]
[345511525,1734305471884,-5450.0,0.000225,2]
[345511526,1734305471895,-1600.000003,0.000225,2]
[345511527,1734305471908,-226227.36493066,0.000225,2]
[345511528,1734305471919,-6712.48420851,0.000225,2]
[345511529,1734305471933,-2413.7,0.000225,2]
[345511532,1734305594285,1201.4007786,1.5e-05,2]
[345511535,1734305633387,10488.50100014,0.00015,2]
[345511536,1734305717411,150.0,0.00019,30]
[345511537,1734305764900,182.98,0.00010137,2]
[345511539,1734305800749,150.0,0.00015,2]
[345511542,1734306359155,-692.01,0.00018363,2]
[345511543,1734306359176,-274.76175506,0.00019064,2]
[345511544,1734306359196,-500.0,0.00019164,2]
[345511545,1734306359216,-500.0,0.00019164,2]
[345511546,1734306359236,-151.0,0.00019677,2]
[345511547,1734306359256,-513.53574244,0.00019775,2]
[345511548,1734306359276,-513.53574244,0.00019777,2]
[345511549,1734306359301,-513.53574244,0.00019778,2]
[345511550,1734306359322,-513.53574244,0.00019789,2]
[345511551,1734306359343,-513.53574244,0.00019798,2]
[345511552,1734306359364,-513.53574244,0.00019799,2]
[345511553,1734306359384,-3944.2,0.000199,2]
[345511554,1734306359406,-300.0,0.00019999,2]
[345511555,1734306359425,-1002.0,0.0002,2]
[345511556,1734306359599,-200.0,0.0002,20]
[345511557,1734306359627,-200.0,0.0002,30]
[345511558,1734306359649,-150.0,0.0002,30]
[345511559,1734306359668,-3480.2969282,0.0002,30]
[345511560,1734306359689,-974.64,0.0002,2]
[345511561,1734306359710,-1010.79,0.00020152,2]
[345511562,1734306359731,-150.0,0.00020244,4]
[345511563,1734306359752,-212.518174,0.00020248,2]
[345511564,1734306359773,-500.0,0.0002026,2]
[345511565,1734306359797,-250.0,0.0002028,2]
[345511566,1734306359822,-1123.47,0.00020291,2]
[345511567,1734306359844,-259.28,0.00020301,2]
[345511568,1734306359867,-1199.95,0.00020316,2]
[345511569,1734306359890,-11585.85,0.00020337,2]
[345511570,1734306359913,-150.0,0.00020339,2]
[345511571,1734306359935,-250.0,0.00020366,2]
[345511572,1734306359957,-730.5,0.00020526,2]
[345511573,1734306359980,-692.01,0.00020626,2]
[345511574,1734306360003,-158.26,0.00020729,30]
[345511575,1734306360025,-167.39,0.00020832,2]
[345511576,1734306360047,-12099.93124358,0.00021,15]
[345511577,1734306360070,-1000.0,0.00021011,2]
[345511578,1734306360091,-932.0,0.00021017,2]
[345511579,1734306360114,-426.12,0.00021017,2]
[345511580,1734306360138,-176.23850015,0.00021017,2]
[345511581,1734306403080,-500.0,0.00019164,2]
[345511582,1734306403101,-475.27,0.00020539,2]
[345511583,1734306403122,-200.0,0.00020539,2]
[345511584,1734306403144,-994.8,0.00021017,2]
[345511585,1734306403164,-831.714,0.00021017,2]
[345511586,1734306403185,-150.0,0.00021017,2]
[345511587,1734306403206,-731.0559993,0.00021017,2]
[345511588,1734306454105,-500.0,0.00019164,2]
[345511589,1734306454130,-877.17,0.0002,2]
[345511590,1734306454151,-500.0,0.0002026,2]
[345511591,1734306454174,-1000.43,0.00020439,2]
[345511592,1734306454194,-1857.41,0.00020439,2]
[345511593,1734306454216,-1000.0,0.00020578,2]
[345511594,1734306454238,-928.04523319,0.00020824,2]
[345511607,1734306632118,-789.45,0.0002,2]
[345511608,1734306632128,-4485.85,0.00020716,2]
[345511609,1734306632137,-994.54,0.00020716,2]
[345511610,1734306632146,-991.71,0.00020716,2]
[345511611,1734306632156,-1004.19,0.00020716,2]
[345511612,1734306632165,-992.96,0.00020716,2]
[345511613,1734306632175,-999.37,0.00020716,2]
[345511614,1734306632184,-980.35,0.00020716,2]
[345511615,1734306632194,-981.07,0.00020716,2]
[345511616,1734306632203,-375.88,0.0002072,2]
[345511617,1734306632213,-158.26,0.00020729,30]
[345511618,1734306632223,-73.95476681,0.00020824,2]
[345511619,1734306632232,-1013.93,0.00020955,2]
[345511620,1734306632241,-1274.9440007,0.00021017,2]
[345511621,1734306632251,-632.0,0.00021017,2]
[345511622,1734306632260,-150.0,0.00021017,2]
[345511623,1734306632270,-1895.0,0.00021017,2]
[345511624,1734306632279,-200.84,0.00021017,2]
[345511625,1734306632288,-3452.762,0.00021017,2]
[345511626,1734306632297,-288.0,0.00021053,2]
[345511627,1734306632307,-346.82,0.00021296,2]
[345511628,1734306632316,-475.27,0.00021299,2]
[345511629,1734306632325,-346.82,0.00021302,2]
[345511630,1734306632335,-837.0,0.00021306,2]
[345511631,1734306632344,-346.82,0.00021307,2]
[345511632,1734306632354,-39448.512,0.00021307,2]
[345511633,1734306632363,-346.82,0.00021313,2]
[345511634,1734306632372,-346.82,0.00021319,2]
[345511635,1734306632381,-346.82,0.00021324,2]
[345511636,1734306632390,-346.82,0.0002133,2]
[345511637,1734306632399,-346.82,0.00021336,2]
[345511638,1734306632408,-346.82,0.00021341,2]
[345511639,1734306632418,-346.82,0.00021347,2]
[345511640,1734306632427,-250.0,0.0002135,2]
[345511641,1734306632436,-346.82,0.00021352,2]
[345511642,1734306632446,-500.0,0.00021356,2]
[345511643,1734306632455,-346.82,0.00021358,2]
[345511644,1734306632465,-346.82,0.00021364,2]
[345511645,1734306632475,-346.82,0.00021369,2]
[345511646,1734306632484,-594.028,0.0002137,2]
[345511647,1734306632493,-346.82,0.00021375,2]
[345511648,1734306632503,-346.82,0.0002138,2]
[345511649,1734306632512,-346.82,0.00021386,2]
[345511650,1734306632521,-346.82,0.00021392,2]
[345511651,1734306632530,-346.82,0.00021397,2]
[345511652,1734306632539,-346.82,0.00021403,2]
[345511653,1734306632548,-2110.0,0.000215,2]
[345511654,1734306632558,-486.32734819,0.00021657,2]
[345511655,1734306632567,-1608.23,0.00021689,7]
[345511656,1734306632576,-1608.23,0.00021689,7]
[345511657,1734306632585,-1608.23,0.00021689,7]
[345511658,1734306632595,-1608.23,0.00021689,7]
[345511659,1734306632604,-698.64073315,0.000217,2]
[345511660,1734306632636,-294.07692635,0.000217,2]
[345511661,1734306632647,-679.2768282,0.000217,2]
[345511662,1734306632658,-636.8999998,0.000217,2]
[345511663,1734306632670,-321.1055125,0.000217,2]
[345511664,1734306632679,-309.0159563,0.0002174,2]
[345511665,1734306632690,-177.31139182,0.0002174,2]
[345511666,1734306632701,-316.71617318,0.00021757,2]
[345511667,1734306632712,-523.866335,0.00021757,2]
[345511668,1734306632723,-3891.75749182,0.00021757,2]
[345511669,1734306632733,-2948.24250818,0.00021757,2]
[345511670,1734306632752,-319.5,0.00021757,2]
[345511671,1734306632763,-4490.06404426,0.00021757,2]
[345511672,1734306632778,-2242.18344756,0.00021757,2]
[345511673,1734306632788,-9999.99,0.00021757,2]
[345511675,1734306632797,-290.93,0.00021757,2]
[345511676,1734306632805,-2345.47,0.00021757,2]
[345511677,1734306632814,-6075.19655245,0.00021757,2]
[345511678,1734306632826,-24747.06296211,0.00021757,2]
[345511679,1734306632836,-1110.52275415,0.00021757,2]
[345511680,1734306632859,-401.33049715,0.00021757,2]
[345511681,1734306632875,-608.90834747,0.00021757,2]
[345511682,1734306632888,-524.49826301,0.00021757,2]
[345512166,1734306638084,-736.72,0.00020499,2]
[345512167,1734306638094,-4784.21062366,0.00021757,2]
[345512168,1734306638104,-855.62305049,0.00021757,2]
[345512169,1734306638161,-2727.44694951,0.00021757,2]
[345512170,1734306638171,-398.49753049,0.00021757,2]
[345512171,1734306638184,-601.49246951,0.00021757,2]
[345512172,1734306638193,-381.66,0.00021757,2]
[345512173,1734306638203,-150.99,0.00021757,2]
[345512174,1734306638213,-150.99,0.00021757,2]
[345512175,1734306638222,-5310.86753049,0.00021757,2]
[345512176,1734306638233,-1683.0,0.00021757,2]
[345512177,1734306638244,-3006.12246951,0.00021757,2]
[345512178,1734306638255,-755.87753049,0.00021757,2]
[345512179,1734306638267,-660.69050794,0.00021757,2]
[345512180,1734306638286,-101.91196157,0.00021757,2]
[345512181,1734306638295,-966.3046,0.00021817,2]
[345512182,1734306638304,-486.32734812,0.00021822,2]
[345512183,1734306638314,-302.0,0.00021825,2]
[345512184,1734306638324,-176.29,0.00021852,2]
[345512185,1734306638335,-610.95829719,0.000219,2]
[345512186,1734306638345,-610.95829703,0.000219,2]
[345512187,1734306638354,-610.95829703,0.000219,2]
[345512188,1734306638363,-610.95829703,0.000219,2]
[345512189,1734306638373,-610.95829703,0.000219,2]
[345512190,1734306638382,-610.95829703,0.000219,2]
[345512191,1734306638392,-610.95829703,0.000219,2]
[345512192,1734306638401,-486.32734812,0.00021905,2]
[345512193,1734306638411,-503.88664274,0.00021916,2]
[345512194,1734306638420,-500.85923626,0.00021916,2]
[345512195,1734306638430,-469.4010321,0.00021916,2]
[345512196,1734306638440,-500.0,0.00021916,2]
[345512197,1734306638449,-500.0,0.00021916,2]
[345512198,1734306638459,-576.18000821,0.00021916,2]
[345512199,1734306638468,-285.59055614,0.00021916,2]
[345512200,1734306638478,-500.0,0.00021916,2]
[345512201,1734306638488,-500.0,0.00021916,2]
[345512202,1734306638498,-500.0,0.00021916,2]
[345512203,1734306638507,-500.0,0.00021916,2]
[345512204,1734306638516,-501.37854333,0.00021916,2]
[345512205,1734306638525,-500.0,0.00021916,2]
[345512206,1734306638535,-500.0,0.00021916,2]
[345512207,1734306638545,-500.0,0.00021916,2]
[345512208,1734306638555,-500.0,0.00021916,2]
[345512209,1734306638564,-500.0,0.00021916,2]
[345512210,1734306638573,-500.0,0.00021916,2]
[345512211,1734306638584,-605.65050188,0.00021916,2]
[345512212,1734306638593,-500.0,0.00021916,2]
[345512213,1734306638602,-500.0,0.00021916,2]
[345512214,1734306638611,-500.0,0.00021916,2]
[345512215,1734306638621,-500.0,0.00021916,2]
[345512216,1734306638630,-500.0,0.00021916,2]
[345512217,1734306638639,-500.0,0.00021916,2]
[345512218,1734306638649,-500.0,0.00021916,2]
[345512219,1734306638659,-500.0,0.00021916,2]
[345512220,1734306638668,-500.0,0.00021916,2]
[345512221,1734306638677,-500.0,0.00021916,2]
[345512222,1734306638689,-500.0,0.00021916,2]
[345512223,1734306638699,-500.0,0.00021916,2]
[345512224,1734306638708,-500.0,0.00021916,2]
[345512225,1734306638718,-500.0,0.00021916,2]
[345512226,1734306638728,-500.0,0.00021916,2]
[345512227,1734306638737,-500.0,0.00021916,2]
[345512228,1734306638747,-500.0,0.00021916,2]
[345512229,1734306638756,-500.0,0.00021916,2]
[345512230,1734306638766,-500.0,0.00021916,2]
[345512231,1734306638775,-500.0,0.00021916,2]
[345512232,1734306638785,-500.0,0.00021916,2]
[345512233,1734306638795,-500.0,0.00021916,2]
[345512234,1734306638804,-500.0,0.00021916,2]
[345512235,1734306638813,-500.0,0.00021916,2]
[345512236,1734306638822,-500.0,0.00021916,2]
[345512237,1734306638833,-500.0,0.00021916,2]
[345512238,1734306638843,-500.0,0.00021916,2]
[345512239,1734306638852,-500.0,0.00021916,2]
[345512240,1734306638862,-500.0,0.00021916,2]
[345512241,1734306638871,-500.0,0.00021916,2]
[345512242,1734306638884,-500.0,0.00021916,2]
[345512243,1734306638893,-500.0,0.00021916,2]
[345512244,1734306638905,-500.0,0.00021916,2]
[345512245,1734306638914,-500.0,0.00021916,2]
[345512246,1734306638923,-500.0,0.00021916,2]
[345512247,1734306639069,-500.0,0.00021916,2]
[345512248,1734306639085,-500.0,0.00021916,2]
[345512249,1734306639094,-500.0,0.00021916,2]
[345512250,1734306639103,-162.78905922,0.00021916,2]
[345512251,1734306639112,-500.0,0.00021916,2]
[345512252,1734306639121,-500.0,0.00021916,2]
[345512253,1734306639131,-500.0,0.00021916,2]
[345512254,1734306639140,-500.0,0.00021916,2]
[345512255,1734306639149,-500.0,0.00021916,2]
[345512256,1734306639159,-500.0,0.00021916,2]
[345512257,1734306639168,-500.0,0.00021916,2]
[345512259,1734306639177,-500.0,0.00021916,2]
[345512261,1734306639186,-500.0,0.00021916,2]
[345512263,1734306639196,-500.0,0.00021916,2]
[345512265,1734306639205,-500.0,0.00021916,2]
[345512267,1734306639214,-500.0,0.00021916,2]
[345512269,1734306639224,-500.0,0.00021916,2]
[345512271,1734306639233,-500.0,0.00021916,2]
[345512273,1734306639243,-500.0,0.00021916,2]
[345512275,1734306639252,-500.0,0.00021916,2]
[345512277,1734306639261,-500.0,0.00021916,2]
[345512279,1734306639271,-500.0,0.00021916,2]
[345512281,1734306639280,-500.0,0.00021916,2]
[345512283,1734306639289,-500.0,0.00021916,2]
[345512285,1734306639299,-500.0,0.00021916,2]
[345512287,1734306639308,-500.0,0.00021916,2]
[345512289,1734306639318,-500.0,0.00021916,2]
[345512291,1734306639328,-500.0,0.00021916,2]
[345512293,1734306639340,-500.0,0.00021916,2]
[345512295,1734306639350,-500.0,0.00021916,2]
[345512297,1734306639360,-500.0,0.00021916,2]
[345512299,1734306639370,-500.0,0.00021916,2]
[345512301,1734306639379,-500.0,0.00021916,2]
[345512303,1734306639388,-200.0,0.00021916,2]
[345512305,1734306639398,-233.39317102,0.00021916,2]
[345512307,1734306639407,-500.0,0.00021917,3]
[345512309,1734306639416,-324.48857883,0.00021917,3]
[345512311,1734306639425,-500.0,0.00021917,3]
[345512313,1734306639434,-500.0,0.00021917,3]
[345512315,1734306639444,-500.0,0.00021917,3]
[345512316,1734306639452,-500.0,0.00021917,3]
[345512317,1734306639461,-500.0,0.00021917,3]
[345512318,1734306639470,-500.0,0.00021917,3]
[345512319,1734306639479,-500.0,0.00021917,3]
[345512320,1734306639488,-500.0,0.00021917,3]
[345512321,1734306639498,-500.0,0.00021917,3]
[345512322,1734306639508,-500.0,0.00021917,3]
[345512323,1734306639517,-500.0,0.00021917,3]
[345512324,1734306639527,-500.0,0.00021917,3]
[345512326,1734306639536,-500.0,0.00021917,3]
[345512328,1734306639546,-500.0,0.00021917,3]
[345512330,1734306639555,-215.09,0.00021917,3]
[345512332,1734306639564,-500.0,0.00021917,3]
[345512334,1734306639573,-500.0,0.00021917,3]
[345512336,1734306639586,-500.0,0.00021917,3]
[345512338,1734306639595,-500.0,0.00021917,3]
[345512340,1734306639607,-500.0,0.00021917,3]
[345512342,1734306639616,-500.0,0.00021917,3]
[345512344,1734306639625,-500.0,0.00021917,3]
[345512346,1734306639635,-500.0,0.00021917,3]
[345512348,1734306639644,-500.0,0.00021917,3]
[345512350,1734306639653,-500.0,0.00021917,3]
[345512352,1734306639662,-500.0,0.00021917,3]
[345512354,1734306639671,-500.0,0.00021917,3]
[345512356,1734306639680,-620.26528402,0.00021917,3]
[345512358,1734306639689,-500.0,0.00021917,3]
[345512360,1734306639698,-500.0,0.00021917,3]
[345512362,1734306639708,-500.0,0.00021917,3]
[345512364,1734306639717,-500.0,0.00021917,3]
[345512366,1734306639726,-500.0,0.00021917,3]
[345512368,1734306639735,-500.0,0.00021917,3]
[345512370,1734306639744,-310.71,0.00021917,3]
[345512372,1734306639753,-500.0,0.00021917,3]
[345512374,1734306639762,-4427.53,0.00021917,3]
[345512376,1734306639771,-500.0,0.00021917,3]
[345512377,1734306639781,-500.0,0.00021917,3]
[345512379,1734306639790,-586.86012532,0.00021917,3]
[345512381,1734306639798,-500.0,0.00021917,3]
[345512383,1734306639808,-299.15,0.00021917,3]
[345512385,1734306639817,-500.0,0.00021917,3]
[345512387,1734306639826,-500.0,0.00021917,3]
[345512390,1734306639839,-500.0,0.00021917,3]
[345512392,1734306639848,-500.0,0.00021917,3]
[345512394,1734306639858,-456.42330064,0.00021917,3]
[345512396,1734306639867,-500.0,0.00021917,3]
[345512398,1734306639876,-500.0,0.00021917,3]
[345512400,1734306639892,-500.0,0.00021917,3]
[345512401,1734306639901,-500.0,0.00021917,3]
[345512403,1734306639912,-500.0,0.00021917,3]